[Event "XIV American Continental-ch 2019"]
[Site "Sao Paulo"]
[Date "2019.07.09"]
[Round "6.4"]
[White "Quintiliano Pinto, Renato R."]
[Black "Leitao, Rafael"]
[Result "1-0"]
[ECO "A17"]
[WhiteElo "2443"]
[BlackElo "2616"]
[Annotator "RC"]
[PlyCount "83"]
[EventDate "2019.07.05"]
[EventType "swiss"]
[EventCountry "BRA"]
[SourceTitle "playchess.com"]
[Source "ChessBase"]
[SourceQuality "1"]
[TimeControl "40/5400+30:1800+30"]

1. Nf3 {[%emt 0:03:00]} Nf6 {[%emt 0:00:20]} 2. c4 {[%emt 0:00:10]} e6 {[%emt 0:00:23]} 3. Nc3 {[%emt 0:00:23]} Bb4 {[%emt 0:00:34]} 4. Qc2 {[%emt 0:00:51]} O-O {[%emt 0:03:01]} 5. a3 {[%emt 0:00:19]} Bxc3 {[%emt 0:02:23]} 6. Qxc3 {[%emt 0:00:08]} d6 {[%emt 0:00:33]} 7. d4 {[%emt 0:05:13]} Nbd7 {[%emt 0:01:46]} 8. e3 {[%emt 0:02:58]} b6 {[%emt 0:00:43]} 9. Be2 {[%emt 0:00:11]} Bb7 {[%emt 0:01:07]} 10. b4 {[%emt 0:05:35]} Ne4 {[%emt 0:09:21]} 11. Qc2 {[%emt 0:01:07]} f5 {[%emt 0:04:38]} 12. Bb2 {[%emt 0:06:05]} Qe8 {[%emt 0:24:57]} 13. O-O {[%emt 0:06:32]} Qg6 {[%emt 0:00:41]} 14. Rad1 {[%emt 0:03:28]} Rae8 {[%emt 0:10:14]} 15. Qa4 {[%emt 0:23:28]} Ndf6 {[%emt 0:02:36]} 16. Qxa7 {[%emt 0:00:53]} Rb8 {[%emt 0:00:05]} 17. d5 {[%emt 0:04:12]} exd5 {[%emt 0:00:45]} 18. cxd5 {[%emt 0:01:32]} Qf7 {[%emt 0:02:32]} 19. Bxf6 {[%emt 0:05:39]} Qxf6 {[%emt 0:07:13]} 20. Ba6 {[%emt 0:00:13]} Bxa6 {[%emt 0:04:20]} 21. Qxa6 {[%emt 0:00:04]} Ra8 {[%emt 0:00:06]} 22. Qc4 {[%emt 0:00:17]} Qc3 {[%emt 0:02:18]} 23. Rc1 {[%emt 0:01:41]} Qxc4 {[%emt 0:07:00]} 24. Rxc4 {[%emt 0:00:05]} Rxa3 {[%emt 0:00:30]} 25. Rxc7 {[%emt 0:00:46]} Nc3 {[%emt 0:00:24]} 26. Rc6 {[%emt 0:00:32]} Nxd5 {[%emt 0:00:20]} 27. Rxd6 {[%emt 0:06:16]} Nxb4 {[%emt 0:00:09]} 28. Rxb6 {[%emt 0:00:05]} Nd5 {[%emt 0:00:16]} 29. Rd6 {[%emt 0:00:19]} Nf6 {[%emt 0:02:07]} 30. g3 {[%emt 0:07:38]} g6 {[%emt 0:00:14]} 31. Rb1 {[%emt 0:01:51]} Ra7 {[%emt 0:01:06]} 32. Ng5 {[%emt 0:00:48]} Re7 {[%emt 0:05:25]} 33. Rb4 {[%emt 0:00:36]} Ne8 {[%emt 0:01:20]} 34. Rc6 {[%emt 0:00:30]} Rf6 {[%emt 0:03:33]} 35. Rc8 {[%emt 0:01:11]} h6 {[%emt 0:00:13]} 36. Nf3 {[%emt 0:00:09]} Kf7 {[%emt 0:00:19]} 37. Rbb8 {[%emt 0:00:43]} Nd6 {[%emt 0:04:04]} 38. Rf8+ {[%emt 0:00:48]} Kg7 {[%emt 0:00:04]} 39. Rg8+ {[%emt 0:00:08]} Kh7 {[%emt 0:00:29]} 40. Rh8+ {[%emt 0:00:06]} Kg7 {[%emt 0:00:04]} 41. Rbg8+ {[%emt 0:30:48]} Kf7 {[%emt 0:30:05]} 42. Rf8+ {[%emt 0:00:11]} 1-0

[Event "XIV American Continental-ch 2019"]
[Site "Sao Paulo"]
[Date "2019.07.09"]
[Round "6.5"]
[White "Languidey, Simon Alejandro"]
[Black "Gonzalez Vidal, Yuri"]
[Result "0-1"]
[ECO "C45"]
[WhiteElo "2427"]
[BlackElo "2547"]
[Annotator "RC"]
[PlyCount "142"]
[EventDate "2019.07.05"]
[EventType "swiss"]
[EventCountry "BRA"]
[SourceTitle "playchess.com"]
[Source "ChessBase"]
[SourceQuality "1"]
[TimeControl "40/5400+30:1800+30"]

1. e4 {[%emt 0:15:07]} e5 {[%emt 0:00:00]} 2. Nf3 {[%emt 0:00:23]} Nc6 {[%emt 0:00:00]} 3. d4 {[%emt 0:00:07]} exd4 {[%emt 0:00:13]} 4. Nxd4 {[%emt 0:00:10]} Bc5 {[%emt 0:01:27]} 5. Be3 {[%emt 0:00:21]} Qf6 {[%emt 0:00:53]} 6. c3 {[%emt 0:00:15]} Nge7 {[%emt 0:00:59]} 7. Bc4 {[%emt 0:00:45]} Ne5 {[%emt 0:02:30]} 8. Be2 {[%emt 0:00:36]} d6 {[%emt 0:02:32]} 9. O-O {[%emt 0:01:06]} Qg6 {[%emt 0:01:36]} 10. f3 {[%emt 0:01:29]} O-O {[%emt 0:06:07]} 11. Nd2 {[%emt 0:02:41]} d5 {[%emt 0:14:46]} 12. Rf2 {[%emt 0:19:13]} Bb6 {[%emt 0:02:49]} 13. Qc2 {[%emt 0:09:51]} dxe4 {[%emt 0:05:35]} 14. Qxe4 {[%emt 0:01:16]} Qxe4 {[%emt 0:04:07]} 15. fxe4 {[%emt 0:01:35]} N7c6 {[%emt 0:08:02]} 16. Nf1 {[%emt 0:05:29]} a6 {[%emt 0:17:45]} 17. Nxc6 {[%emt 0:01:29]} bxc6 {[%emt 0:01:19]} 18. Bd4 {[%emt 0:03:47]} f6 {[%emt 0:02:05]} 19. Ne3 {[%emt 0:04:40]} Be6 {[%emt 0:00:17]} 20. Kf1 {[%emt 0:10:34]} a5 {[%emt 0:05:02]} 21. Ke1 {[%emt 0:00:56]} Rad8 {[%emt 0:03:05]} 22. Nc2 {[%emt 0:01:55]} Rfe8 {[%emt 0:00:51]} 23. b3 {[%emt 0:02:59]} Bf7 {[%emt 0:03:56]} 24. Rd1 {[%emt 0:00:55]} Bg6 {[%emt 0:00:52]} 25. Rf4 {[%emt 0:00:44]} Nf7 {[%emt 0:00:57]} 26. Bf3 {[%emt 0:04:54]} Ng5 {[%emt 0:01:51]} 27. Bxb6 {[%emt 0:02:44]} Rxd1+ {[%emt 0:01:18]} 28. Kxd1 {[%emt 0:00:17]} cxb6 {[%emt 0:00:05]} 29. Nd4 {[%emt 0:00:43]} Nxe4 {[%emt 0:03:38]} 30. Nxc6 {[%emt 0:00:43]} Nxc3+ {[%emt 0:00:16]} 31. Kd2 {[%emt 0:03:12]} Ne4+ {[%emt 0:00:57]} 32. Kd3 {[%emt 0:01:54]} Ng5+ {[%emt 0:02:20]} 33. Kd2 {[%emt 0:00:39]} Nxf3+ {[%emt 0:00:43]} 34. gxf3 {[%emt 0:00:11]} Re6 {[%emt 0:01:31]} 35. Rc4 {[%emt 0:01:32]} Rd6+ {[%emt 0:00:58]} 36. Nd4 {[%emt 0:00:36]} Be8 {[%emt 0:02:12]} 37. Ke3 {[%emt 0:00:24]} Bd7 {[%emt 0:02:28]} 38. a3 {[%emt 0:00:06]} Kf7 {[%emt 0:00:28]} 39. b4 {[%emt 0:00:31]} axb4 {[%emt 0:00:15]} 40. axb4 {[%emt 0:00:19]} g5 {[%emt 0:00:43]} 41. Rc7 {[%emt 0:31:24]} Kg6 {[%emt 0:30:38]} 42. Rb7 {[%emt 0:00:00]} f5 {[%emt 0:00:00]} 43. Rb8 {[%emt 0:00:00]} Kf6 {[%emt 0:00:00]} 44. Ne2 {[%emt 0:00:00]} f4+ {[%emt 0:00:00]} 45. Kf2 {[%emt 0:00:00]} Ke5 {[%emt 0:00:00]} 46. Rb7 {[%emt 0:00:00]} h6 {[%emt 0:00:00]} 47. Rb8 {[%emt 0:00:00]} Kd5 {[%emt 0:00:00]} 48. Nc3+ {[%emt 0:00:00]} Kc4 {[%emt 0:00:00]} 49. Ne4 {[%emt 0:00:00]} Re6 {[%emt 0:00:00]} 50. h4 {[%emt 0:00:00]} gxh4 {[%emt 0:00:00]} 51. Rf8 {[%emt 0:00:00]} Bc6 {[%emt 0:00:00]} 52. Rxf4 {[%emt 0:00:00]} Bxe4 {[%emt 0:00:00]} 53. fxe4 {[%emt 0:01:27]} Kxb4 {[%emt 0:00:00]} 54. Ke3 {[%emt 0:00:59]} Kc3 {[%emt 0:00:00]} 55. Rf5 {[%emt 0:01:11]} h3 {[%emt 0:00:00]} 56. Rh5 {[%emt 0:00:20]} h2 {[%emt 0:00:00]} 57. Rxh2 {[%emt 0:01:30]} b5 {[%emt 0:00:00]} 58. Kf4 {[%emt 0:00:28]} b4 {[%emt 0:00:00]} 59. Kf5 {[%emt 0:00:50]} Rb6 {[%emt 0:00:19]} 60. Rh3+ {[%emt 0:01:56]} Kc4 {[%emt 0:01:03]} 61. e5 {[%emt 0:02:06]} b3 {[%emt 0:00:09]} 62. Rh4+ {[%emt 0:00:33]} Kc3 {[%emt 0:02:57]} 63. Rh3+ {[%emt 0:00:09]} Kd4 {[%emt 0:03:17]} 64. Rh4+ {[%emt 0:00:39]} Kd5 {[%emt 0:00:41]} 65. Rh1 {[%emt 0:00:18]} b2 {[%emt 0:03:15]} 66. Rb1 {[%emt 0:00:42]} Rb3 {[%emt 0:01:21]} 67. e6 {[%emt 0:01:18]} Kd6 {[%emt 0:00:11]} 68. Kf6 {[%emt 0:00:28]} Rf3+ {[%emt 0:00:26]} 69. Kg6 {[%emt 0:00:16]} Rf2 {[%emt 0:00:30]} 70. Re1 {[%emt 0:00:19]} Ke7 {[%emt 0:00:49]} 71. Kxh6 {[%emt 0:00:19]} Rc2 {[%emt 0:00:16]} 0-1

[Event "XIV American Continental-ch 2019"]
[Site "Sao Paulo"]
[Date "2019.07.09"]
[Round "6.6"]
[White "Mekhitarian, Krikor Sevag"]
[Black "Matsuura, Everaldo"]
[Result "1/2-1/2"]
[ECO "D45"]
[WhiteElo "2545"]
[BlackElo "2459"]
[Annotator "ChessBase"]
[PlyCount "53"]
[EventDate "2019.07.05"]
[EventType "swiss"]
[EventCountry "BRA"]
[SourceTitle "playchess.com"]
[Source "ChessBase"]
[SourceQuality "1"]
[TimeControl "40/5400+30:1800+30"]

1. c4 {[%emt 0:00:00]} c6 {[%emt 0:01:51]} 2. Nf3 {[%emt 0:00:20]} d5 {[%emt 0:00:10]} 3. e3 {[%emt 0:01:03]} Nf6 {[%emt 0:00:52]} 4. Nc3 {[%emt 0:00:09]} a6 {[%emt 0:00:56]} 5. d4 {[%emt 0:01:39]} e6 {[%emt 0:02:36]} 6. b3 {[%emt 0:03:52]} Bb4 {[%emt 0:11:30]} 7. Bd2 {[%emt 0:02:28]} Nbd7 {[%emt 0:01:22]} 8. Bd3 {[%emt 0:00:30]} O-O {[%emt 0:01:51]} 9. O-O {[%emt 0:00:51]} Bd6 {[%emt 0:00:40]} 10. Rc1 {[%emt 0:05:38]} e5 {[%emt 0:04:14]} 11. cxd5 {[%emt 0:00:34]} cxd5 {[%emt 0:00:12]} 12. e4 {[%emt 0:00:59]} dxe4 {[%emt 0:19:14]} 13. Nxe4 {[%emt 0:00:34]} Nxe4 {[%emt 0:00:18]} 14. Bxe4 {[%emt 0:00:05]} Nf6 {[%emt 0:07:12]} 15. Bg5 {[%emt 0:28:51]} exd4 {[%emt 0:16:28]} 16. Bb1 {[%emt 0:17:40]} Be7 {[%emt 0:06:43]} 17. Qd3 {[%emt 0:15:04]} g6 {[%emt 0:00:11]} 18. Qxd4 {[%emt 0:00:05]} Qxd4 {[%emt 0:06:06]} 19. Nxd4 {[%emt 0:00:02]} Nd5 {[%emt 0:00:26]} 20. Bxe7 {[%emt 0:00:32]} Nxe7 {[%emt 0:00:08]} 21. Rfe1 {[%emt 0:00:48]} Nd5 {[%emt 0:05:41]} 22. Be4 {[%emt 0:02:02]} Nf6 {[%emt 0:00:15]} 23. Bf3 {[%emt 0:00:13]} Rd8 {[%emt 0:00:44]} 24. Nc2 {[%emt 0:04:13]} Rb8 {[%emt 0:01:10]} 25. Ne3 {[%emt 0:00:56]} Be6 {[%emt 0:01:03]} 26. Rc7 {[%emt 0:00:58]} Rd2 {[%emt 0:02:49]} 27. Re2 {[%emt 0:03:22]} 1/2-1/2

[Event "XIV American Continental-ch 2019"]
[Site "Sao Paulo"]
[Date "2019.07.09"]
[Round "6.7"]
[White "Umetsubo, Cesar Hidemitsu"]
[Black "Krysa, Leandro"]
[Result "0-1"]
[ECO "D00"]
[WhiteElo "2406"]
[BlackElo "2517"]
[Annotator "ChessBase"]
[PlyCount "82"]
[EventDate "2019.07.05"]
[EventType "swiss"]
[EventCountry "BRA"]
[SourceTitle "playchess.com"]
[Source "ChessBase"]
[SourceQuality "1"]
[TimeControl "40/5400+30:1800+30"]

1. d4 {[%emt 0:00:00]} d5 {[%emt 0:00:00]} 2. Bf4 {[%emt 0:00:28]} Nf6 {[%emt 0:00:00]} 3. e3 {[%emt 0:00:07]} e6 {[%emt 0:00:11]} 4. Nf3 {[%emt 0:02:38]} c5 {[%emt 0:00:37]} 5. Nbd2 {[%emt 0:00:57]} Nc6 {[%emt 0:00:40]} 6. c3 {[%emt 0:00:10]} Nh5 {[%emt 0:00:29]} 7. Bg5 {[%emt 0:01:28]} f6 {[%emt 0:00:09]} 8. Bh4 {[%emt 0:01:53]} g6 {[%emt 0:00:08]} 9. Bd3 {[%emt 0:10:04]} cxd4 {[%emt 0:00:32]} 10. cxd4 {[%emt 0:02:24]} Be7 {[%emt 0:01:06]} 11. Qb3 {[%emt 0:23:19]} O-O {[%emt 0:10:51]} 12. O-O {[%emt 0:07:12]} Na5 {[%emt 0:03:30]} 13. Qc2 {[%emt 0:04:25]} Bd7 {[%emt 0:03:57]} 14. Rac1 {[%emt 0:01:13]} b5 {[%emt 0:21:58]} 15. Qc7 {[%emt 0:06:47]} Nc4 {[%emt 0:03:14]} 16. Qxd8 {[%emt 0:00:04]} Rfxd8 {[%emt 0:03:02]} 17. b3 {[%emt 0:00:13]} Nxd2 {[%emt 0:01:12]} 18. Nxd2 {[%emt 0:00:02]} g5 {[%emt 0:00:01]} 19. g4 {[%emt 0:05:42]} gxh4 {[%emt 0:02:33]} 20. gxh5 {[%emt 0:00:27]} Rac8 {[%emt 0:08:15]} 21. f4 {[%emt 0:01:17]} Kg7 {[%emt 0:10:57]} 22. Kf2 {[%emt 0:01:57]} Kh6 {[%emt 0:02:29]} 23. Nf3 {[%emt 0:01:26]} h3 {[%emt 0:02:28]} 24. Rxc8 {[%emt 0:02:49]} Rxc8 {[%emt 0:00:08]} 25. Rg1 {[%emt 0:00:14]} Bd6 {[%emt 0:09:30]} 26. Ke2 {[%emt 0:03:40]} a5 {[%emt 0:00:15]} 27. f5 {[%emt 0:11:42]} a4 {[%emt 0:04:28]} 28. fxe6 {[%emt 0:01:38]} Bxe6 {[%emt 0:00:05]} 29. Nh4 {[%emt 0:00:53]} Bxh2 {[%emt 0:01:37]} 30. Rh1 {[%emt 0:00:21]} Bg4+ {[%emt 0:01:39]} 31. Kd2 {[%emt 0:00:12]} Kxh5 {[%emt 0:00:59]} 32. Nf5 {[%emt 0:05:46]} Bc7 {[%emt 0:00:29]} 33. b4 {[%emt 0:00:19]} h2 {[%emt 0:00:39]} 34. Ne7 {[%emt 0:01:48]} Rd8 {[%emt 0:01:28]} 35. Bxb5 {[%emt 0:00:14]} Kh4 {[%emt 0:04:21]} 36. Be2 {[%emt 0:00:02]} Rd7 {[%emt 0:00:46]} 37. Ng8 {[%emt 0:02:05]} Bxe2 {[%emt 0:00:43]} 38. Kxe2 {[%emt 0:00:01]} Rg7 {[%emt 0:00:10]} 39. Nxf6 {[%emt 0:00:08]} Rg1 {[%emt 0:00:12]} 40. Rxh2+ {[%emt 0:00:07]} Bxh2 {[%emt 0:00:04]} 41. Nxd5 {[%emt 0:30:24]} Rg2+ {[%emt 0:30:46]} 0-1

[Event "XIV American Continental-ch 2019"]
[Site "Sao Paulo"]
[Date "2019.07.09"]
[Round "6.8"]
[White "Hernandez Sanchez, Jairo Andres"]
[Black "Di Berardino, Diego Rafael"]
[Result "1-0"]
[ECO "B51"]
[WhiteElo "2387"]
[BlackElo "2506"]
[Annotator "ChessBase"]
[PlyCount "63"]
[EventDate "2019.07.05"]
[EventType "swiss"]
[EventCountry "BRA"]
[SourceTitle "playchess.com"]
[Source "ChessBase"]
[SourceQuality "1"]
[TimeControl "40/5400+30:1800+30"]

1. e4 {[%emt 0:00:00]} c5 {[%emt 0:00:00]} 2. Nf3 {[%emt 0:00:00]} d6 {[%emt 0:00:33]} 3. Bb5+ {[%emt 0:01:58]} Nd7 {[%emt 0:01:01]} 4. c3 {[%emt 0:00:38]} Ngf6 {[%emt 0:00:32]} 5. Qe2 {[%emt 0:02:08]} a6 {[%emt 0:00:40]} 6. Ba4 {[%emt 0:00:57]} b5 {[%emt 0:00:56]} 7. Bc2 {[%emt 0:00:25]} Bb7 {[%emt 0:00:27]} 8. a4 {[%emt 0:03:45]} e6 {[%emt 0:07:16]} 9. O-O {[%emt 0:04:06]} Be7 {[%emt 0:01:17]} 10. d4 {[%emt 0:06:24]} O-O {[%emt 0:02:26]} 11. Nbd2 {[%emt 0:03:46]} Qc7 {[%emt 0:12:27]} 12. e5 {[%emt 0:11:10]} dxe5 {[%emt 0:00:35]} 13. dxe5 {[%emt 0:01:01]} Nd5 {[%emt 0:01:29]} 14. Re1 {[%emt 0:11:02]} Nf4 {[%emt 0:19:38]} 15. Qe3 {[%emt 0:03:53]} Ng6 {[%emt 0:06:40]} 16. c4 {[%emt 0:03:13]} b4 {[%emt 0:08:27]} 17. h4 {[%emt 0:04:04]} Rfd8 {[%emt 0:03:37]} 18. h5 {[%emt 0:01:41]} Ngf8 {[%emt 0:06:25]} 19. h6 {[%emt 0:02:36]} g6 {[%emt 0:03:58]} 20. b3 {[%emt 0:04:10]} f5 {[%emt 0:04:58]} 21. exf6 {[%emt 0:03:47]} Nxf6 {[%emt 0:02:16]} 22. Ne5 {[%emt 0:02:58]} N6d7 {[%emt 0:05:02]} 23. Bb2 {[%emt 0:13:55]} Nxe5 {[%emt 0:00:05]} 24. Bxe5 {[%emt 0:00:29]} Bd6 {[%emt 0:00:04]} 25. Bxd6 {[%emt 0:02:12]} Rxd6 {[%emt 0:00:57]} 26. Be4 {[%emt 0:00:37]} Rad8 {[%emt 0:01:59]} 27. Ra2 {[%emt 0:02:26]} Bc8 {[%emt 0:03:53]} 28. Nf3 {[%emt 0:01:23]} a5 {[%emt 0:01:28]} 29. Rae2 {[%emt 0:01:09]} Nd7 {[%emt 0:01:55]} 30. Qg5 {[%emt 0:00:52]} Nf8 {[%emt 0:01:37]} 31. Ne5 {[%emt 0:00:22]} Bd7 {[%emt 0:00:46]} 32. Qe7 {[%emt 0:00:49]} 1-0

[Event "XIV American Continental-ch 2019"]
[Site "Sao Paulo"]
[Date "2019.07.09"]
[Round "6.9"]
[White "Salinas Herrera, Pablo"]
[Black "Escalante Ramirez, Brian Sebasti"]
[Result "1-0"]
[ECO "D02"]
[WhiteElo "2498"]
[BlackElo "2447"]
[Annotator "ChessBase"]
[PlyCount "73"]
[EventDate "2019.07.05"]
[EventType "swiss"]
[EventCountry "BRA"]
[SourceTitle "playchess.com"]
[Source "ChessBase"]
[SourceQuality "1"]
[TimeControl "40/5400+30:1800+30"]

1. d4 {[%emt 0:00:00]} Nf6 {[%emt 0:00:00]} 2. Nf3 {[%emt 0:00:00]} d5 {[%emt 0:00:00]} 3. Bf4 {[%emt 0:00:52]} c5 {[%emt 0:00:13]} 4. e3 {[%emt 0:00:05]} Nc6 {[%emt 0:00:28]} 5. Nbd2 {[%emt 0:00:05]} e6 {[%emt 0:01:19]} 6. c3 {[%emt 0:00:05]} cxd4 {[%emt 0:00:11]} 7. exd4 {[%emt 0:01:34]} Nh5 {[%emt 0:00:24]} 8. Be3 {[%emt 0:00:05]} Bd6 {[%emt 0:00:52]} 9. g3 {[%emt 0:05:24]} O-O {[%emt 0:10:48]} 10. Bd3 {[%emt 0:00:04]} f5 {[%emt 0:00:42]} 11. Ne5 {[%emt 0:00:09]} Nf6 {[%emt 0:06:04]} 12. Bf4 {[%emt 0:05:02]} Ne4 {[%emt 0:12:30]} 13. Ndf3 {[%emt 0:14:05]} Qc7 {[%emt 0:15:07]} 14. Qc1 {[%emt 0:17:23]} Bd7 {[%emt 0:09:22]} 15. Be2 {[%emt 0:22:25]} Be8 {[%emt 0:02:22]} 16. Nd3 {[%emt 0:00:36]} Bh5 {[%emt 0:01:35]} 17. O-O {[%emt 0:00:22]} h6 {[%emt 0:07:02]} 18. Re1 {[%emt 0:02:31]} Bxf3 {[%emt 0:09:52]} 19. Bxf3 {[%emt 0:00:06]} Bxf4 {[%emt 0:00:21]} 20. Nxf4 {[%emt 0:00:22]} Rf6 {[%emt 0:01:04]} 21. Bg2 {[%emt 0:02:48]} g5 {[%emt 0:00:16]} 22. Nd3 {[%emt 0:00:04]} Raf8 {[%emt 0:01:42]} 23. f3 {[%emt 0:03:34]} Nd6 {[%emt 0:00:02]} 24. Re2 {[%emt 0:01:45]} f4 {[%emt 0:06:25]} 25. gxf4 {[%emt 0:02:35]} gxf4 {[%emt 0:00:02]} 26. Bh3 {[%emt 0:00:36]} Nf5 {[%emt 0:06:05]} 27. Bxf5 {[%emt 0:08:00]} Rxf5 {[%emt 0:00:01]} 28. Kh1 {[%emt 0:00:14]} Qf7 {[%emt 0:02:14]} 29. Qe1 {[%emt 0:00:51]} Re8 {[%emt 0:03:04]} 30. Qh4 {[%emt 0:00:17]} Kh7 {[%emt 0:00:03]} 31. Rg1 {[%emt 0:01:09]} Rh5 {[%emt 0:00:44]} 32. Qe1 {[%emt 0:00:58]} Qf5 {[%emt 0:02:16]} 33. Qd2 {[%emt 0:02:08]} Rh3 {[%emt 0:02:22]} 34. Ne5 {[%emt 0:04:00]} Ne7 {[%emt 0:00:52]} 35. Reg2 {[%emt 0:00:14]} Rg8 {[%emt 0:00:31]} 36. Rxg8 {[%emt 0:00:04]} Nxg8 {[%emt 0:00:03]} 37. Qg2 {[%emt 0:00:07]} 1-0

[Event "XIV American Continental-ch 2019"]
[Site "Sao Paulo"]
[Date "2019.07.09"]
[Round "6.10"]
[White "Mieles Palau, Daniel"]
[Black "Hambleton, Aman"]
[Result "1-0"]
[ECO "A21"]
[WhiteElo "2359"]
[BlackElo "2487"]
[Annotator "ChessBase"]
[PlyCount "131"]
[EventDate "2019.07.05"]
[EventType "swiss"]
[EventCountry "BRA"]
[SourceTitle "playchess.com"]
[Source "ChessBase"]
[SourceQuality "1"]
[TimeControl "40/5400+30:1800+30"]

1. c4 {[%emt 0:00:00]} e5 {[%emt 0:01:15]} 2. Nc3 {[%emt 0:00:01]} Bb4 {[%emt 0:00:40]} 3. Nd5 {[%emt 0:01:58]} Bc5 {[%emt 0:01:43]} 4. e3 {[%emt 0:07:16]} Nf6 {[%emt 0:07:30]} 5. Nxf6+ {[%emt 0:05:38]} Qxf6 {[%emt 0:02:38]} 6. Ne2 {[%emt 0:00:12]} Qe7 {[%emt 0:13:06]} 7. a3 {[%emt 0:03:17]} Bb6 {[%emt 0:04:31]} 8. d4 {[%emt 0:07:59]} d6 {[%emt 0:01:05]} 9. b4 {[%emt 0:06:56]} c6 {[%emt 0:00:43]} 10. Bb2 {[%emt 0:00:53]} O-O {[%emt 0:01:31]} 11. dxe5 {[%emt 0:08:16]} dxe5 {[%emt 0:00:05]} 12. c5 {[%emt 0:04:04]} Bc7 {[%emt 0:00:28]} 13. Qc2 {[%emt 0:00:07]} f5 {[%emt 0:30:08]} 14. Ng3 {[%emt 0:03:58]} f4 {[%emt 0:02:03]} 15. Bd3 {[%emt 0:17:56]} h6 {[%emt 0:06:34]} 16. exf4 {[%emt 0:01:36]} exf4+ {[%emt 0:00:26]} 17. Kf1 {[%emt 0:01:01]} fxg3 {[%emt 0:05:13]} 18. Re1 {[%emt 0:06:01]} Qg5 {[%emt 0:04:57]} 19. hxg3 {[%emt 0:06:51]} Nd7 {[%emt 0:09:13]} 20. Bc4+ {[%emt 0:05:00]} Kh8 {[%emt 0:00:29]} 21. Bc1 {[%emt 0:05:33]} Qf5 {[%emt 0:01:18]} 22. Qxf5 {[%emt 0:00:55]} Rxf5 {[%emt 0:00:03]} 23. Re7 {[%emt 0:00:06]} Rf6 {[%emt 0:02:22]} 24. Bg5 {[%emt 0:02:32]} Bd8 {[%emt 0:01:30]} 25. Re8+ {[%emt 0:01:00]} Rf8 {[%emt 0:00:09]} 26. Rxd8 {[%emt 0:01:08]} Rxd8 {[%emt 0:00:49]} 27. Bxd8 {[%emt 0:00:01]} Ne5 {[%emt 0:00:11]} 28. Be2 {[%emt 0:01:16]} Bg4 {[%emt 0:02:16]} 29. Bxg4 {[%emt 0:00:45]} Rxd8 {[%emt 0:01:00]} 30. Be2 {[%emt 0:00:50]} Rd2 {[%emt 0:00:29]} 31. Rh5 {[%emt 0:00:16]} Nd7 {[%emt 0:00:16]} 32. Rf5 {[%emt 0:01:27]} Ra2 {[%emt 0:00:40]} 33. Bf3 {[%emt 0:00:05]} Rxa3 {[%emt 0:00:35]} 34. Rf7 {[%emt 0:00:24]} Ne5 {[%emt 0:00:32]} 35. Rf8+ {[%emt 0:01:34]} Kh7 {[%emt 0:00:02]} 36. Be4+ {[%emt 0:00:24]} g6 {[%emt 0:00:03]} 37. Rb8 {[%emt 0:00:17]} Kg7 {[%emt 0:01:24]} 38. Rxb7+ {[%emt 0:00:36]} Kf6 {[%emt 0:00:03]} 39. f4 {[%emt 0:00:16]} Nc4 {[%emt 0:00:56]} 40. Bxc6 {[%emt 0:00:06]} Ra2 {[%emt 0:00:26]} 41. Bf3 {[%emt 0:31:13]} Ne3+ {[%emt 0:01:52]} 42. Ke1 {[%emt 0:00:00]} g5 {[%emt 0:26:39]} 43. c6 {[%emt 0:00:00]} g4 {[%emt 0:00:50]} 44. Be4 {[%emt 0:00:00]} Ra1+ {[%emt 0:00:38]} 45. Ke2 {[%emt 0:00:00]} Nf1 {[%emt 0:01:49]} 46. Bd5 {[%emt 0:00:00]} Nxg3+ {[%emt 0:00:18]} 47. Kd2 {[%emt 0:00:00]} Nf1+ {[%emt 0:01:23]} 48. Kc2 {[%emt 0:00:00]} Ne3+ {[%emt 0:00:34]} 49. Kb2 {[%emt 0:00:00]} Rd1 {[%emt 0:00:32]} 50. c7 {[%emt 0:00:00]} Rd2+ {[%emt 0:00:22]} 51. Kb3 {[%emt 0:00:00]} Rd3+ {[%emt 0:00:34]} 52. Ka4 {[%emt 0:00:00]} Rc3 {[%emt 0:00:10]} 53. Be4 {[%emt 0:00:00]} Nc4 {[%emt 0:00:38]} 54. b5 {[%emt 0:00:00]} Nd6 {[%emt 0:00:47]} 55. Rxa7 {[%emt 0:00:35]} Nxe4 {[%emt 0:00:30]} 56. b6 {[%emt 0:00:00]} Nd6 {[%emt 0:00:29]} 57. Ra8 {[%emt 0:01:16]} Rc4+ {[%emt 0:00:31]} 58. Ka5 {[%emt 0:00:51]} Ke7 {[%emt 0:00:28]} 59. Rh8 {[%emt 0:01:26]} Nb7+ {[%emt 0:00:30]} 60. Ka6 {[%emt 0:00:15]} Nd6 {[%emt 0:00:10]} 61. Rh7+ {[%emt 0:00:08]} Ke8 {[%emt 0:00:52]} 62. b7 {[%emt 0:00:37]} Rc6+ {[%emt 0:00:29]} 63. Ka7 {[%emt 0:00:06]} Nb5+ {[%emt 0:00:31]} 64. Kb8 {[%emt 0:00:06]} Nxc7 {[%emt 0:00:29]} 65. Rxc7 {[%emt 0:00:04]} Rd6 {[%emt 0:00:07]} 66. Ka7 {[%emt 0:00:07]} 1-0